bitfinex-derivatives/quotes_BTCF0:USTF0_20241224
["timestamp","ask_amount","ask_price","bid_price","bid_amount"]
[1735038577847,0.414048,94046.0,94044.0,0.054249]
[1735038578047,0.414048,94046.0,94045.0,0.053248]
[1735038579956,0.3608,94046.0,94045.0,0.053248]
[1735038580256,0.12731744,94049.0,94048.0,0.053247]
[1735038580749,0.55205393,94056.0,94048.0,0.053247]
[1735038580953,0.053246,94049.0,94048.0,0.053247]
[1735038583253,0.18057352,94049.0,94048.0,0.053247]
[1735038584348,0.053246,94049.0,94048.0,0.053247]
[1735038588551,0.054246,94049.0,94048.0,0.053247]
[1735038588956,0.053246,94049.0,94048.0,0.053247]
[1735038589157,0.055246,94049.0,94048.0,0.053247]
[1735038589771,0.056246,94049.0,94048.0,0.053247]
[1735038589960,0.10800576,94049.0,94048.0,0.053247]
[1735038590868,0.10700576,94049.0,94048.0,0.053247]
[1735038591456,0.10500576,94049.0,94048.0,0.053247]
[1735038591657,0.10600576,94049.0,94048.0,0.053247]
[1735038593066,0.10500576,94049.0,94048.0,0.053247]
[1735038593267,0.10600576,94049.0,94048.0,0.053247]
[1735038595170,0.10500576,94049.0,94048.0,0.053247]
[1735038595368,0.10600576,94049.0,94048.0,0.053247]
[1735038595569,0.10600576,94049.0,94048.0,0.24460376]
[1735038599257,0.10600576,94049.0,94048.0,0.053247]
[1735038600863,0.10600576,94049.0,94048.0,0.24460376]
[1735038601470,0.10700576,94049.0,94048.0,0.24460376]
[1735038601667,0.10600576,94049.0,94048.0,0.24460376]
[1735038601868,0.10800576,94049.0,94048.0,0.24460376]
[1735038602258,0.10600576,94049.0,94048.0,0.053247]
[1735038606278,0.10600576,94049.0,94048.0,0.24457216]
[1735038606474,0.10700576,94049.0,94048.0,0.24457216]
[1735038606670,0.10800576,94049.0,94048.0,0.24457216]
[1735038608478,0.10800576,94049.0,94048.0,0.19132516]
[1735038608878,0.10700576,94049.0,94048.0,0.19132516]
[1735038609179,0.24532177,94049.0,94045.0,0.053248]
[1735038609381,0.414048,94046.0,94045.0,0.053248]
[1735038609679,0.053248,94046.0,94045.0,0.053248]
[1735038610575,0.054248,94046.0,94045.0,0.053248]
[1735038610976,0.001,94046.0,94045.0,0.17461062]
[1735038611172,0.05968428,94047.0,94045.0,0.17461062]
[1735038611373,0.05968428,94047.0,94046.0,0.04115103]
[1735038611575,0.05968428,94047.0,94046.0,0.07135103]
[1735038611879,0.002,94049.0,94047.0,0.053247]
[1735038612072,0.002,94049.0,94048.0,0.04115103]
[1735038612273,0.002,94049.0,94048.0,0.20572722]
[1735038612771,0.19056201,94064.0,94063.0,0.053238]
[1735038613282,0.053236,94066.0,94063.0,0.053238]
[1735038613479,0.053236,94066.0,94064.0,0.053237]
[1735038614579,0.053233,94072.0,94067.0,0.053236]
[1735038614976,0.053233,94072.0,94068.0,0.053235]
[1735038615371,0.053233,94072.0,94070.0,0.053234]
[1735038615575,0.3608,94073.0,94072.0,0.053233]
[1735038615881,0.3608,94074.0,94064.0,0.12248972]
[1735038616086,0.3608,94074.0,94073.0,0.053232]
[1735038618278,0.063,94079.0,94077.0,0.05323]
[1735038618586,0.3608,94078.0,94077.0,0.05323]
[1735038619385,0.3608,94078.0,94077.0,0.05423]
[1735038619881,0.3608,94078.0,94077.0,0.05323]
[1735038620088,0.3698,94078.0,94077.0,0.05423]
[1735038621979,0.49712651,94078.0,94077.0,0.05423]
[1735038625893,0.009,94078.0,94077.0,0.41503]
[1735038627987,0.0954129,94089.0,94088.0,0.053224]
[1735038628389,0.12732651,94094.0,94079.0,0.10867689]
[1735038628390,0.0954129,94093.0,94092.0,0.053222]
[1735038629684,0.1024129,94093.0,94092.0,0.054222]
[1735038630791,0.1024129,94093.0,94092.0,0.055222]
[1735038631388,0.1024129,94093.0,94092.0,0.16843055]
[1735038631692,0.007,94093.0,94092.0,0.53023055]
[1735038631994,0.0454129,94096.0,94095.0,0.05322]
[1735038632290,0.0454129,94096.0,94095.0,0.17239446]
[1735038632887,0.1,94100.0,94099.0,0.053218]
[1735038633182,0.1,94100.0,94099.0,0.16970371]
[1735038635495,0.106,94100.0,94099.0,0.17070371]
[1735038636297,0.3608,94114.0,94113.0,0.05321]
[1735038636794,0.3608,94114.0,94113.0,0.17603316]
[1735038636988,0.0655,94127.0,94126.0,0.053202]
[1735038644695,0.0655,94127.0,94126.0,0.055202]
[1735038645202,0.0655,94127.0,94126.0,0.053202]
[1735038650200,0.3608,94132.0,94126.0,0.11490018]
[1735038650509,0.3608,94132.0,94131.0,0.0532]
[1735038652008,0.3928,94140.0,94130.0,0.3608]
[1735038652212,0.3928,94140.0,94139.0,0.053195]
[1735038654822,0.445995,94140.0,94139.0,0.053195]
[1735038657813,0.085195,94140.0,94139.0,0.053195]
[1735038659328,0.445995,94140.0,94139.0,0.053195]
[1735038659927,0.445995,94140.0,94130.0,0.10867689]
[1735038660127,0.445995,94140.0,94127.0,0.09114482]
[1735038660128,0.053201,94128.0,94127.0,0.09114482]
[1735038660320,0.053201,94128.0,94122.0,0.1456472]
[1735038660321,0.053204,94123.0,94122.0,0.1456472]
[1735038660522,0.053204,94123.0,94116.0,0.31854033]
[1735038660828,0.414008,94117.0,94116.0,0.31854033]
[1735038661530,0.05321,94112.0,94111.0,0.00159359]
[1735038662030,0.3608,94117.0,94111.0,0.00159359]
[1735038662327,0.3608,94117.0,94115.0,0.053209]
[1735038662527,0.414008,94117.0,94115.0,0.053209]
[1735038662723,0.3608,94117.0,94112.0,0.0637]
[1735038662924,0.05321,94113.0,94112.0,0.0637]
[1735038664828,0.05321,94113.0,94112.0,0.0647]
[1735038665331,0.3608,94117.0,94116.0,0.053208]
[1735038665921,0.3109,94117.0,94116.0,0.053208]
[1735038666128,0.21235765,94122.0,94114.0,0.3608]
[1735038666424,0.15915265,94122.0,94121.0,0.053205]
[1735038666823,0.12730385,94125.0,94122.0,0.053205]
[1735038667022,0.12730385,94125.0,94116.0,0.0324]
[1735038667223,0.18050685,94125.0,94123.0,0.053204]
[1735038669128,0.18250685,94125.0,94123.0,0.055204]
[1735038669731,0.18050685,94125.0,94123.0,0.055204]
[1735038669930,0.054203,94125.0,94123.0,0.055204]
[1735038670520,0.001,94125.0,94123.0,0.055204]
[1735038670729,0.003,94125.0,94123.0,0.053204]
[1735038670923,0.12730385,94126.0,94125.0,0.053203]
[1735038671331,0.07740385,94126.0,94125.0,0.17120798]
[1735038671530,0.07740385,94129.0,94125.0,0.11800498]
[1735038671731,0.07740385,94129.0,94128.0,0.053201]
[1735038672039,0.07740385,94129.0,94128.0,0.17120598]
[1735038672433,0.02750385,94129.0,94128.0,0.17120598]
[1735038673138,0.053194,94141.0,94128.0,0.17120598]
[1735038673331,0.053194,94141.0,94140.0,0.053195]
[1735038674937,0.054194,94141.0,94140.0,0.053195]
[1735038675930,0.055194,94141.0,94140.0,0.053195]
[1735038676339,0.053197,94136.0,94135.0,0.053197]
[1735038676536,0.002,94141.0,94131.0,0.0331]
[1735038676734,0.053196,94139.0,94138.0,0.053196]
[1735038677935,0.056196,94139.0,94138.0,0.053196]
[1735038678844,0.058196,94139.0,94138.0,0.053196]
[1735038679039,0.058196,94139.0,94138.0,0.069156]
[1735038679340,0.058196,94139.0,94138.0,0.053196]
[1735038680238,0.058196,94139.0,94138.0,0.069156]
[1735038680542,0.058196,94139.0,94138.0,0.053196]
[1735038680745,0.058196,94139.0,94138.0,0.069156]
[1735038680940,0.058195,94139.0,94138.0,0.01596]
[1735038681129,0.005,94139.0,94133.0,0.053198]
[1735038681336,0.053198,94134.0,94133.0,0.053198]
[1735038682537,0.055198,94134.0,94133.0,0.053198]
[1735038682745,0.053203,94126.0,94125.0,0.3608]
[1735038683341,0.053207,94119.0,94118.0,0.053207]
[1735038683538,0.053208,94117.0,94112.0,0.05321]
[1735038683841,0.053208,94116.0,94105.0,0.32888115]
[1735038684035,0.053208,94116.0,94105.0,0.31854033]
[1735038685037,0.053208,94116.0,94104.0,0.00159389]
[1735038685240,0.053208,94116.0,94115.0,0.3638]
[1735038685441,0.053208,94116.0,94115.0,0.3698]
[1735038687440,0.053208,94116.0,94115.0,0.009]
[1735038692544,0.053221,94094.0,94093.0,0.00159408]
[1735038692739,0.414021,94094.0,94093.0,0.00159408]
[1735038694149,0.46576407,94094.0,94093.0,0.00359408]
[1735038694749,0.46576407,94094.0,94093.0,0.00459408]
[1735038695445,0.414021,94094.0,94093.0,0.00459408]
[1735038699849,0.053217,94101.0,94093.0,0.00459408]
[1735038700050,0.053217,94101.0,94099.0,0.053217]
[1735038700246,0.053217,94101.0,94100.0,0.0313]
[1735038702662,0.3608,94110.0,94100.0,0.0313]
[1735038702866,0.3608,94110.0,94101.0,0.0313]
[1735038703067,0.3608,94110.0,94108.0,0.053212]
[1735038703457,0.053212,94109.0,94108.0,0.053212]
[1735038704258,0.053212,94109.0,94108.0,0.055212]
[1735038704758,0.053212,94109.0,94108.0,0.054212]
[1735038705357,0.054212,94109.0,94108.0,0.054212]
[1735038706966,0.053212,94109.0,94108.0,0.053212]
[1735038707166,0.053212,94109.0,94108.0,0.055212]
[1735038708065,0.053212,94109.0,94108.0,0.054212]
[1735038709968,0.3608,94111.0,94110.0,0.053211]
[1735038710163,0.3109,94111.0,94110.0,0.053211]
[1735038710361,0.3109,94111.0,94110.0,0.16569097]
[1735038710974,0.36136001,94122.0,94110.0,0.11247997]
[1735038711168,0.053205,94121.0,94119.0,0.053206]
[1735038711368,0.053205,94121.0,94120.0,0.0613]
[1735038711675,0.3608,94122.0,94121.0,0.053205]
[1735038712173,0.053204,94123.0,94121.0,0.053205]
[1735038713072,0.3608,94124.0,94120.0,0.0613]
[1735038713265,0.053205,94121.0,94120.0,0.0306]
[1735038715567,0.053205,94121.0,94120.0,0.0622]
[1735038715767,0.52028575,94124.0,94123.0,0.053204]
[1735038716061,0.51972574,94124.0,94123.0,0.053204]
[1735038716375,0.3608,94124.0,94123.0,0.053204]
[1735038716870,0.15892574,94128.0,94126.0,0.053202]
[1735038716871,0.053202,94127.0,94126.0,0.053202]
[1735038717773,0.15892574,94130.0,94129.0,0.053201]
[1735038718668,0.15892574,94130.0,94129.0,0.069161]
[1735038719176,0.053199,94132.0,94129.0,0.069161]
[1735038719565,0.053199,94132.0,94130.0,0.0532]
[1735038719976,0.0532,94131.0,94130.0,0.0532]
[1735038720876,0.053198,94135.0,94134.0,0.053197]
[1735038722475,0.0542,94131.0,94130.0,0.0532]
[1735038723275,0.0532,94131.0,94130.0,0.0532]
[1735038723864,0.0542,94131.0,94130.0,0.0532]
[1735038724969,0.0552,94131.0,94130.0,0.0532]
[1735038727769,0.053202,94126.0,94124.0,0.053203]
[1735038727971,0.053203,94125.0,94124.0,0.053203]
[1735038729782,0.053203,94125.0,94124.0,0.054203]
[1735038733186,0.51972574,94128.0,94127.0,0.053202]
[1735038734681,0.3608,94128.0,94127.0,0.053202]
[1735038734981,0.15892574,94129.0,94127.0,0.17628367]
[1735038735383,0.15892574,94129.0,94128.0,0.3913]
[1735038735774,0.15892574,94133.0,94128.0,0.50323008]
[1735038735970,0.15892574,94133.0,94132.0,0.053199]
[1735038736381,0.15892574,94133.0,94132.0,0.17626683]
[1735038737380,0.12733435,94137.0,94136.0,0.053197]
[1735038737772,0.12733435,94137.0,94136.0,0.069157]
[1735038738481,0.12733435,94137.0,94136.0,0.18155524]
[1735038738876,0.12733435,94142.0,94141.0,0.053194]
[1735038739183,0.12733435,94142.0,94141.0,0.413994]
[1735038740378,0.13333435,94142.0,94141.0,0.414994]
[1735038740685,0.13633435,94142.0,94141.0,0.414994]
[1735038741684,0.009,94142.0,94141.0,0.414994]
[1735038743287,0.009,94142.0,94141.0,0.42559123]
[1735038743688,0.009,94142.0,94141.0,0.54725805]
[1735038744490,0.13628262,94142.0,94141.0,0.54725805]
[1735038745990,0.009,94142.0,94141.0,0.54725805]
[1735038756009,0.062193,94142.0,94141.0,0.42559123]
[1735038756707,0.062193,94142.0,94141.0,0.3618]
[1735038757610,0.18947562,94142.0,94141.0,0.3618]
[1735038759118,0.062193,94142.0,94141.0,0.3618]
[1735038763320,0.11390307,94142.0,94141.0,0.3618]
[1735038767817,0.11390307,94142.0,94141.0,0.414994]
[1735038769117,0.11390307,94142.0,94141.0,0.3618]
[1735038773420,0.11390307,94142.0,94141.0,0.414994]
[1735038774228,0.062193,94142.0,94141.0,0.414994]
[1735038775728,0.22140544,94142.0,94141.0,0.414994]
[1735038777027,0.062193,94142.0,94141.0,0.414994]
[1735038777831,0.062193,94142.0,94141.0,0.430954]
[1735038778027,0.062193,94142.0,94141.0,0.414994]
[1735038778626,0.062193,94142.0,94141.0,0.430954]
[1735038779231,0.11390157,94142.0,94141.0,0.430954]
[1735038784228,0.06070857,94142.0,94141.0,0.430954]
[1735038784432,0.25127058,94142.0,94141.0,0.430954]
[1735038786035,0.06070857,94142.0,94141.0,0.430954]
[1735038786940,0.25127058,94142.0,94141.0,0.430954]
[1735038787836,0.30446358,94142.0,94141.0,0.430954]
[1735038788539,0.11390157,94142.0,94141.0,0.430954]
[1735038791131,0.06070857,94142.0,94141.0,0.430954]
[1735038791431,0.11390157,94142.0,94141.0,0.430954]
[1735038793647,0.11390157,94142.0,94141.0,0.414994]
[1735038794938,0.11390157,94142.0,94141.0,0.3618]
[1735038795537,0.30528113,94142.0,94141.0,0.3618]
[1735038796642,0.30528113,94142.0,94141.0,0.001]
[1735038796643,0.47470157,94142.0,94141.0,0.001]
[1735038799443,0.0532,94130.0,94129.0,7.674e-05]
[1735038800434,0.10490857,94130.0,94129.0,7.674e-05]
[1735038802441,0.10590857,94130.0,94129.0,7.674e-05]
[1735038803031,0.29703617,94130.0,94129.0,7.674e-05]
[1735038803430,0.29603617,94130.0,94129.0,7.674e-05]
[1735038803639,0.29803617,94130.0,94129.0,7.674e-05]
[1735038804146,0.10690857,94130.0,94129.0,7.674e-05]
[1735038805243,0.10790857,94130.0,94129.0,7.674e-05]
[1735038805641,0.0542,94130.0,94129.0,7.674e-05]
[1735038805842,0.0552,94130.0,94129.0,7.674e-05]
[1735038806847,0.10790857,94130.0,94129.0,7.674e-05]
[1735038808441,0.0552,94130.0,94129.0,7.674e-05]
[1735038808641,0.0562,94130.0,94129.0,7.674e-05]
[1735038809343,0.0552,94130.0,94129.0,7.674e-05]
[1735038811447,0.10691898,94130.0,94129.0,7.674e-05]
[1735038812942,0.0552,94130.0,94129.0,7.674e-05]
[1735038816250,0.10691866,94130.0,94129.0,7.674e-05]
[1735038820051,0.10791866,94130.0,94129.0,7.674e-05]
[1735038822049,0.10691866,94130.0,94129.0,7.674e-05]
[1735038823555,0.29695023,94130.0,94129.0,7.674e-05]
[1735038823749,0.29795023,94130.0,94129.0,7.674e-05]
[1735038824458,0.29695023,94130.0,94129.0,7.674e-05]
[1735038825048,0.29595023,94130.0,94129.0,7.674e-05]
[1735038825263,0.29795023,94130.0,94129.0,7.674e-05]
[1735038825847,0.24375023,94130.0,94129.0,0.36087674]
[1735038826051,0.24375023,94130.0,94129.0,0.41407774]
[1735038826356,0.05271866,94130.0,94129.0,0.41407774]
[1735038826560,0.05271866,94130.0,94129.0,0.42485943]
[1735038826561,0.10591866,94130.0,94129.0,0.42485943]
[1735038827559,0.10591866,94130.0,94129.0,0.42585943]
[1735038828156,0.05171866,94130.0,94129.0,0.42685943]
[1735038828664,0.05171866,94130.0,94129.0,0.42485943]
[1735038828954,0.10591866,94130.0,94129.0,0.42485943]
[1735038829159,0.0542,94130.0,94129.0,0.42485943]
[1735038830350,0.10591866,94130.0,94129.0,0.42485943]
[1735038831560,0.21363111,94130.0,94129.0,0.42485943]
[1735038833062,0.0542,94130.0,94129.0,0.42485943]
[1735038833567,0.0542,94130.0,94129.0,0.42685943]
[1735038834159,0.0542,94130.0,94129.0,0.42585943]
[1735038835154,0.0532,94130.0,94129.0,0.41707774]
[1735038835360,0.0532,94130.0,94129.0,0.05627774]
[1735038835559,0.0532,94130.0,94129.0,0.24658326]
[1735038835961,0.0532,94130.0,94129.0,0.19338226]
[1735038836364,0.0532,94130.0,94129.0,0.19138226]
[1735038836566,0.0532,94130.0,94129.0,0.19038226]
[1735038837062,0.10491691,94130.0,94129.0,7.674e-05]
[1735038841166,0.21260174,94130.0,94129.0,7.674e-05]
[1735038841364,0.21360174,94130.0,94129.0,7.674e-05]
[1735038842057,0.21260174,94130.0,94129.0,7.674e-05]
[1735038842865,0.0532,94130.0,94129.0,7.674e-05]
[1735038845768,0.10491665,94130.0,94129.0,7.674e-05]
[1735038846369,0.10591665,94130.0,94129.0,7.674e-05]
[1735038846763,0.29727358,94130.0,94129.0,7.674e-05]
[1735038848271,0.10591665,94130.0,94129.0,7.674e-05]
[1735038851274,0.10591665,94130.0,94129.0,0.05328074]
[1735038853070,0.05271665,94130.0,94129.0,0.05328074]
[1735038853671,0.05271665,94130.0,94129.0,0.09446136]
[1735038854262,0.18025195,94130.0,94129.0,0.09446136]
[1735038854566,0.1285353,94130.0,94129.0,0.09446136]
[1735038854768,0.1285353,94130.0,94129.0,0.10513402]
[1735038855167,0.1275353,94130.0,94129.0,0.10513402]
[1735038856070,0.1275353,94131.0,94130.0,0.053204]
[1735038856473,0.1275353,94131.0,94130.0,0.20207138]
[1735038856872,0.1275353,94131.0,94130.0,0.24324365]
[1735038857381,0.1275353,94131.0,94130.0,0.20207138]
[1735038857577,0.1275353,94133.0,94132.0,0.053203]
[1735038857779,0.1275353,94133.0,94132.0,0.414003]
[1735038857970,0.1275353,94133.0,94132.0,0.54531216]
[1735038859070,0.1295353,94133.0,94132.0,0.54531216]
[1735038859780,0.002,94133.0,94132.0,0.54531216]
[1735038860382,0.1275353,94134.0,94132.0,0.49210916]
[1735038860576,0.1275353,94134.0,94133.0,0.053202]
[1735038860776,0.1275353,94134.0,94133.0,0.084502]
[1735038860977,0.1275353,94134.0,94133.0,0.19799143]
[1735038861372,0.1275353,94136.0,94135.0,0.053201]
[1735038861776,0.1275353,94136.0,94135.0,0.17562857]
[1735038862786,0.1305353,94136.0,94135.0,0.17562857]
[1735038862977,0.1315353,94136.0,94135.0,0.17562857]
[1735038864171,0.1315353,94136.0,94135.0,0.21677359]
[1735038864379,0.1315353,94136.0,94135.0,0.17562857]
[1735038864574,0.004,94136.0,94135.0,0.17562857]
[1735038867485,0.09951402,94136.0,94135.0,0.17562857]
[1735038868687,0.004,94136.0,94135.0,0.17562857]
[1735038870886,0.0995146,94136.0,94135.0,0.17562857]
[1735038872587,0.004,94136.0,94135.0,0.17562857]
[1735038875682,0.09952377,94136.0,94135.0,0.17562857]
[1735038876590,0.004,94136.0,94135.0,0.17562857]
[1735038877801,0.004,94136.0,94135.0,0.19158857]
[1735038878492,0.004,94136.0,94135.0,0.17562857]
[1735038878686,0.004,94136.0,94135.0,0.19158857]
[1735038880783,0.18467517,94136.0,94135.0,0.053201]
[1735038881392,0.13147517,94136.0,94135.0,0.053201]
[1735038882392,0.05570982,94136.0,94135.0,0.053201]
[1735038882892,0.05470982,94136.0,94135.0,0.053201]
[1735038883494,0.05270982,94136.0,94135.0,0.053201]
[1735038884194,0.16046193,94136.0,94135.0,0.053201]
[1735038884891,0.053198,94140.0,94135.0,0.053201]
[1735038885095,0.001,94136.0,94132.0,0.55155651]
[1735038885395,0.001,94136.0,94132.0,0.3608]
[1735038885396,0.05270982,94136.0,94132.0,0.3608]
[1735038885988,0.05270982,94136.0,94135.0,0.0532]
[1735038886188,0.05170982,94136.0,94135.0,0.0532]
[1735038886596,0.05170982,94138.0,94137.0,0.053199]
[1735038886993,0.05170982,94138.0,94132.0,0.3608]
[1735038887187,0.053202,94133.0,94132.0,0.414002]
[1735038887798,0.053202,94133.0,94132.0,0.053202]
[1735038888989,0.055202,94133.0,94132.0,0.053202]
[1735038889396,0.10691182,94133.0,94132.0,0.053202]
[1735038891497,0.10491182,94133.0,94132.0,0.053202]
[1735038892292,0.15939664,94133.0,94132.0,0.414002]
[1735038892803,0.15939664,94133.0,94132.0,0.52796834]
[1735038893398,0.15939664,94135.0,94134.0,0.053201]
[1735038894797,0.15939664,94135.0,94133.0,0.053202]
[1735038894798,0.05170973,94135.0,94133.0,0.053202]
[1735038894993,0.05170973,94135.0,94134.0,0.17125582]
[1735038895197,0.13860615,94139.0,94134.0,0.2124391]
[1735038895397,0.13860615,94139.0,94138.0,0.053199]
[1735038895605,0.13860615,94139.0,94138.0,0.09438228]
[1735038895903,0.13860615,94139.0,94138.0,0.2124371]
[1735038896401,0.12748964,94142.0,94141.0,0.053198]
[1735038896598,0.12748964,94142.0,94141.0,0.09438128]
[1735038896907,0.12748964,94142.0,94141.0,0.20759415]
[1735038897499,0.09559096,94142.0,94141.0,0.16641087]
[1735038897695,0.09559096,94142.0,94141.0,0.18237087]
[1735038898401,0.09759096,94142.0,94141.0,0.16641087]
[1735038898601,0.09759096,94142.0,94141.0,0.18237087]
[1735038898799,0.10059096,94142.0,94141.0,0.18237087]
[1735038899393,0.10059096,94142.0,94141.0,0.19307102]
[1735038900095,0.005,94142.0,94141.0,0.42429582]
[1735038901103,0.005,94142.0,94141.0,0.23421852]
[1735038901792,0.005,94142.0,94141.0,0.19307102]
[1735038905098,0.058197,94142.0,94141.0,0.053198]
[1735038905502,0.053199,94139.0,94138.0,0.19001269]
[1735038905698,0.0309,94141.0,94136.0,0.0532]
[1735038905901,0.053202,94134.0,94133.0,0.25327874]
[1735038906105,0.414002,94134.0,94133.0,0.25327874]
[1735038907104,0.053204,94130.0,94129.0,7.674e-05]
[1735038908513,0.053204,94130.0,94129.0,0.00207674]
[1735038908905,0.053204,94130.0,94129.0,0.00307674]
[1735038909405,0.053204,94130.0,94129.0,0.00207674]
[1735038910404,0.053204,94130.0,94129.0,0.00107674]
[1735038911506,0.053204,94130.0,94129.0,7.674e-05]
[1735038912613,0.21226134,94130.0,94129.0,7.674e-05]
[1735038913304,0.22284997,94130.0,94129.0,7.674e-05]
[1735038915210,0.21226134,94130.0,94129.0,7.674e-05]
[1735038915516,0.15905734,94130.0,94129.0,7.674e-05]
[1735038916018,0.15905734,94130.0,94129.0,0.01050076]
[1735038916202,0.15905734,94130.0,94129.0,0.06370576]
[1735038917117,0.12718624,94131.0,94130.0,0.053204]
[1735038917610,0.12718624,94131.0,94130.0,0.16573437]
[1735038918007,0.12718624,94131.0,94130.0,0.18169437]
[1735038918317,0.12718624,94131.0,94130.0,0.18369437]
[1735038918513,0.053197,94139.0,94130.0,0.13049037]
[1735038918514,0.09537844,94133.0,94130.0,0.13049037]
[1735038918816,0.09537844,94133.0,94132.0,0.414001]
[1735038919214,0.09537844,94133.0,94132.0,0.53475432]
[1735038919922,0.14857644,94138.0,94137.0,0.053198]
[1735038921319,0.053198,94138.0,94137.0,0.053198]
[1735038921516,0.054198,94138.0,94137.0,0.053198]
[1735038922113,0.055198,94138.0,94137.0,0.053198]
[1735038923616,0.056198,94138.0,94137.0,0.053198]
[1735038923817,0.055198,94138.0,94137.0,0.053198]
[1735038924218,0.14957644,94138.0,94137.0,0.053198]
[1735038925717,0.054198,94138.0,94137.0,0.053198]
[1735038926423,0.001,94138.0,94137.0,0.053198]
[1735038927026,0.12718624,94141.0,94140.0,0.053196]
[1735038927427,0.12718624,94143.0,94142.0,0.053195]
[1735038929323,0.18038124,94143.0,94142.0,0.053195]
[1735038929823,0.18438124,94143.0,94142.0,0.053195]
[1735038931325,0.057195,94143.0,94142.0,0.053195]
[1735038935836,0.056195,94143.0,94142.0,0.053195]
[1735038936029,0.057195,94143.0,94142.0,0.053195]
[1735038940132,0.057195,94143.0,94142.0,0.413995]
[1735038942628,0.004,94143.0,94142.0,0.413995]
[1735038943233,0.057195,94143.0,94142.0,0.053195]
[1735038945036,0.21625234,94143.0,94142.0,0.053195]
[1735038945835,0.057195,94143.0,94142.0,0.053195]
[1735038948741,0.10890232,94143.0,94142.0,0.053195]
[1735038957337,0.29970382,94143.0,94142.0,0.053195]
[1735038958534,0.29970382,94143.0,94137.0,0.19013547]
[1735038958535,0.053199,94138.0,94137.0,0.19013547]
[1735038958839,0.413999,94138.0,94137.0,0.19013547]
[1735038959037,0.0532,94135.0,94134.0,0.25327874]
[1735038960439,0.10490732,94135.0,94129.0,7.674e-05]
[1735038960639,0.053203,94130.0,94129.0,7.674e-05]
[1735038961741,0.10491032,94130.0,94129.0,7.674e-05]
[1735038961942,0.10491032,94130.0,94129.0,0.00107674]
[1735038962245,0.10491032,94130.0,94129.0,0.00407674]
[1735038964344,0.053203,94130.0,94129.0,0.00407674]
[1735038965846,0.21247065,94130.0,94129.0,0.00407674]
[1735038967143,0.10492268,94130.0,94129.0,0.00407674]
[1735038968245,0.053203,94130.0,94129.0,0.00407674]
[1735038968448,0.414003,94130.0,94129.0,0.00407674]
[1735038969349,0.46572268,94130.0,94129.0,0.00407674]
[1735038972348,0.414003,94130.0,94129.0,0.00407674]
[1735038973249,0.414003,94130.0,94129.0,1e-08]
[1735038974243,0.41407985,94130.0,94129.0,1e-08]
[1735038975251,0.65709795,94130.0,94129.0,1e-08]
[1735038976545,0.25020262,94130.0,94129.0,1e-08]
[1735038976946,0.30340562,94130.0,94129.0,1e-08]
[1735038988857,0.52698268,94130.0,94129.0,1e-08]
[1735038989963,0.30340562,94130.0,94129.0,1e-08]
[1735038991258,0.25020262,94130.0,94111.0,0.3608]
[1735038991463,0.053214,94112.0,94111.0,0.3608]
[1735038992352,0.053214,94112.0,94111.0,0.3698]
[1735038992561,0.10493677,94112.0,94111.0,0.3698]
[1735038993063,0.10493677,94112.0,94111.0,0.3738]
[1735038993965,0.10493677,94112.0,94111.0,0.3668]
[1735038994457,0.10493677,94112.0,94111.0,0.3638]
[1735038994666,0.10793677,94112.0,94111.0,0.3618]
[1735038995162,0.29916785,94112.0,94111.0,0.3618]
[1735038995563,0.30979509,94112.0,94111.0,0.001]
[1735038996155,0.053217,94107.0,94106.0,0.032]
[1735038997357,0.054217,94107.0,94106.0,0.032]
[1735038997660,0.00482277,94112.0,94111.0,0.053215]
[1735038997958,0.3608,94121.0,94111.0,0.49426753]
[1735038998156,0.3608,94121.0,94119.0,0.05321]
[1735038998353,0.17367706,94122.0,94120.0,0.393]
[1735038998551,0.07677706,94122.0,94121.0,0.069169]
[1735038998854,0.07677706,94122.0,94121.0,0.18265855]
[1735038999450,0.002,94122.0,94121.0,0.18265855]
[1735038999862,0.003,94122.0,94121.0,0.18265855]
[1735039001168,0.002,94122.0,94121.0,0.18265855]
[1735039001557,0.001,94122.0,94121.0,0.18765855]
[1735039002263,0.09557792,94125.0,94124.0,0.053207]
[1735039002772,0.09557792,94125.0,94124.0,0.17260292]
[1735039003270,0.09557792,94126.0,94124.0,0.18259]
[1735039003569,0.09557792,94126.0,94125.0,0.00998708]
[1735039003961,0.09557792,94126.0,94125.0,0.13241972]
[1735039005871,0.09557792,94126.0,94125.0,0.13541972]
[1735039006069,0.053205,94128.0,94125.0,0.13541972]
[1735039006070,0.14878292,94128.0,94126.0,0.053206]
[1735039006270,0.14878292,94128.0,94127.0,0.00998708]
[1735039007270,0.053205,94128.0,94127.0,0.00998708]
[1735039008172,0.053205,94128.0,94127.0,0.01198708]
[1735039008766,0.053205,94128.0,94127.0,0.01298708]
[1735039010065,0.09557792,94129.0,94128.0,0.053205]
[1735039010272,0.09557792,94129.0,94128.0,0.42399208]
[1735039011267,0.09565477,94130.0,94128.0,0.42599208]
[1735039011467,0.09565477,94130.0,94129.0,0.00998708]
[1735039011863,0.09565477,94130.0,94129.0,0.06317108]
[1735039012071,0.14885877,94130.0,94129.0,0.06317108]
[1735039012268,0.14885877,94130.0,94129.0,0.053205]
[1735039012469,0.14885877,94130.0,94129.0,0.06317185]
[1735039013469,0.14885877,94130.0,94129.0,0.42497185]
[1735039016279,0.05328085,94130.0,94129.0,0.42497185]
[1735039017880,0.05328085,94130.0,94129.0,0.44093185]
[1735039018082,0.05328085,94130.0,94129.0,0.44093278]
[1735039018278,0.05328085,94130.0,94129.0,0.42497278]
[1735039018782,0.14870302,94130.0,94129.0,0.44093278]
[1735039019185,0.14870302,94130.0,94129.0,0.08013278]
[1735039019378,0.14870302,94130.0,94129.0,0.42497278]
[1735039020087,0.05328085,94130.0,94129.0,0.42497278]
[1735039020675,0.05328085,94130.0,94129.0,0.44093278]
[1735039020878,0.05328085,94130.0,94129.0,0.42497496]
[1735039021274,0.05328085,94130.0,94129.0,0.415005]
[1735039021471,0.05328085,94130.0,94129.0,0.42497402]
[1735039022172,0.05328085,94130.0,94129.0,0.44093402]
[1735039022676,0.05328085,94130.0,94129.0,0.42497402]
[1735039023982,7.685e-05,94130.0,94129.0,0.42497402]
[1735039024888,7.685e-05,94130.0,94129.0,0.06417402]
[1735039025082,7.685e-05,94130.0,94129.0,0.42497402]
[1735039026289,7.685e-05,94130.0,94129.0,0.42498449]
[1735039026484,7.685e-05,94130.0,94129.0,0.415005]